Workbook

Sheet Student Data Entry
B1: CATS-N/P Questionnaire | Z1: Name: | AA1: John Doe | AD1: Age: | AE1: 12
A2: Item # | B2: "Over the past week, I thought…" | C2: Not at All | D2: Sometimes | E2: Fairly Often | F2: Often | G2: All the Time
A3: 1 | B3: I enjoy life | J3: =IF(P4>1,"ERROR","") ->  | K3: FALSE | L3: TRUE | M3: FALSE | N3: FALSE | O3: FALSE | P3: Count | Q3: Sum | S3: FALSE | T3: FALSE | U3: TRUE | V3: FALSE | W3: FALSE | X3: Count | Y3: Sum
A4: 2 | B4: Kids will think I’m stupid | J4: =IF(X4>1,"ERROR","") ->  | K4: =IF(K3=TRUE,0,"") ->  | L4: =IF(L3=TRUE,1,"") -> 1 | M4: =IF(M3=TRUE,2,"") ->  | N4: =IF(N3=TRUE,3,"") ->  | O4: =IF(O3=TRUE,4,"") ->  | P4: =COUNT(K4:O4) -> 1 | Q4: =SUM(K4:O4) -> 1 | S4: =IF(S3=TRUE,0,"") ->  | T4: =IF(T3=TRUE,1,"") ->  | U4: =IF(U3=TRUE,2,"") -> 2 | V4: =IF(V3=TRUE,3,"") ->  | W4: =IF(W3=TRUE,4,"") ->  | X4: =COUNT(S4:W4) -> 1 | Y4: =SUM(S4:W4) -> 2
A5: 3 | B5: I know that everything I do will work out well | J5: =IF(P6>1,"ERROR","") ->  | K5: FALSE | L5: FALSE | M5: TRUE | N5: FALSE | O5: FALSE | P5: Count | Q5: Sum | S5: FALSE | T5: TRUE | U5: FALSE | V5: FALSE | W5: FALSE | X5: Count | Y5: Sum
A6: 4 | B6: I have the right to take revenge on people if they deserve it | J6: =IF(X6>1,"ERROR","") ->  | K6: =IF(K5=TRUE,0,"") ->  | L6: =IF(L5=TRUE,1,"") ->  | M6: =IF(M5=TRUE,2,"") -> 2 | N6: =IF(N5=TRUE,3,"") ->  | O6: =IF(O5=TRUE,4,"") ->  | P6: =COUNT(K6:O6) -> 1 | Q6: =SUM(K6:O6) -> 2 | S6: =IF(S5=TRUE,0,"") ->  | T6: =IF(T5=TRUE,1,"") -> 1 | U6: =IF(U5=TRUE,2,"") ->  | V6: =IF(V5=TRUE,3,"") ->  | W6: =IF(W5=TRUE,4,"") ->  | X6: =COUNT(S6:W6) -> 1 | Y6: =SUM(S6:W6) -> 1
A7: 5 | B7: I can’t do anything right | J7: =IF(P8>1,"ERROR","") ->  | K7: FALSE | L7: TRUE | M7: FALSE | N7: FALSE | O7: FALSE | P7: Count | Q7: Sum | S7: FALSE | T7: FALSE | U7: TRUE | V7: FALSE | W7: FALSE | X7: Count | Y7: Sum
A8: 6 | B8: I’m going to have an accident | J8: =IF(X8>1,"ERROR","") ->  | K8: =IF(K7=TRUE,0,"") ->  | L8: =IF(L7=TRUE,1,"") -> 1 | M8: =IF(M7=TRUE,2,"") ->  | N8: =IF(N7=TRUE,3,"") ->  | O8: =IF(O7=TRUE,4,"") ->  | P8: =COUNT(K8:O8) -> 1 | Q8: =SUM(K8:O8) -> 1 | S8: =IF(S7=TRUE,0,"") ->  | T8: =IF(T7=TRUE,1,"") ->  | U8: =IF(U7=TRUE,2,"") -> 2 | V8: =IF(V7=TRUE,3,"") ->  | W8: =IF(W7=TRUE,4,"") ->  | X8: =COUNT(S8:W8) -> 1 | Y8: =SUM(S8:W8) -> 2
A9: 7 | B9: Other kids are stupid | J9: =IF(P10>1,"ERROR","") ->  | K9: FALSE | L9: FALSE | M9: FALSE | N9: TRUE | O9: FALSE | P9: Count | Q9: Sum | S9: FALSE | T9: FALSE | U9: TRUE | V9: FALSE | W9: FALSE | X9: Count | Y9: Sum
A10: 8 | B10: I’m worried that I’m going to get teased | J10: =IF(X10>1,"ERROR","") ->  | K10: =IF(K9=TRUE,0,"") ->  | L10: =IF(L9=TRUE,1,"") ->  | M10: =IF(M9=TRUE,2,"") ->  | N10: =IF(N9=TRUE,3,"") -> 3 | O10: =IF(O9=TRUE,4,"") ->  | P10: =COUNT(K10:O10) -> 1 | Q10: =SUM(K10:O10) -> 3 | S10: =IF(S9=TRUE,0,"") ->  | T10: =IF(T9=TRUE,1,"") ->  | U10: =IF(U9=TRUE,2,"") -> 2 | V10: =IF(V9=TRUE,3,"") ->  | W10: =IF(W9=TRUE,4,"") ->  | X10: =COUNT(S10:W10) -> 1 | Y10: =SUM(S10:W10) -> 2
A11: 9 | B11: I’m going crazy | J11: =IF(P12>1,"ERROR","") ->  | K11: FALSE | L11: FALSE | M11: TRUE | N11: FALSE | O11: FALSE | P11: Count | Q11: Sum | S11: FALSE | T11: FALSE | U11: FALSE | V11: TRUE | W11: FALSE | X11: Count | Y11: Sum
A12: 10 | B12: Kids are going to laugh at me | J12: =IF(X12>1,"ERROR","") ->  | K12: =IF(K11=TRUE,0,"") ->  | L12: =IF(L11=TRUE,1,"") ->  | M12: =IF(M11=TRUE,2,"") -> 2 | N12: =IF(N11=TRUE,3,"") ->  | O12: =IF(O11=TRUE,4,"") ->  | P12: =COUNT(K12:O12) -> 1 | Q12: =SUM(K12:O12) -> 2 | S12: =IF(S11=TRUE,0,"") ->  | T12: =IF(T11=TRUE,1,"") ->  | U12: =IF(U11=TRUE,2,"") ->  | V12: =IF(V11=TRUE,3,"") -> 3 | W12: =IF(W11=TRUE,4,"") ->  | X12: =COUNT(S12:W12) -> 1 | Y12: =SUM(S12:W12) -> 3
A13: 11 | B13: I don’t give up | J13: =IF(P14>1,"ERROR","") ->  | K13: TRUE | L13: FALSE | M13: FALSE | N13: FALSE | O13: FALSE | P13: Count | Q13: Sum | S13: TRUE | T13: FALSE | U13: FALSE | V13: FALSE | W13: FALSE | X13: Count | Y13: Sum
A14: 12 | B14: I’m going to die | J14: =IF(X14>1,"ERROR","") ->  | K14: =IF(K13=TRUE,0,"") -> 0 | L14: =IF(L13=TRUE,1,"") ->  | M14: =IF(M13=TRUE,2,"") ->  | N14: =IF(N13=TRUE,3,"") ->  | O14: =IF(O13=TRUE,4,"") ->  | P14: =COUNT(K14:O14) -> 1 | Q14: =SUM(K14:O14) -> 0 | S14: =IF(S13=TRUE,0,"") -> 0 | T14: =IF(T13=TRUE,1,"") ->  | U14: =IF(U13=TRUE,2,"") ->  | V14: =IF(V13=TRUE,3,"") ->  | W14: =IF(W13=TRUE,4,"") ->  | X14: =COUNT(S14:W14) -> 1 | Y14: =SUM(S14:W14) -> 0
A15: 13 | B15: Most people are against me | J15: =IF(P16>1,"ERROR","") ->  | K15: FALSE | L15: TRUE | M15: FALSE | N15: FALSE | O15: FALSE | P15: Count | Q15: Sum | S15: FALSE | T15: FALSE | U15: FALSE | V15: TRUE | W15: FALSE | X15: Count | Y15: Sum
A16: 14 | B16: I am worthless | J16: =IF(X16>1,"ERROR","") ->  | K16: =IF(K15=TRUE,0,"") ->  | L16: =IF(L15=TRUE,1,"") -> 1 | M16: =IF(M15=TRUE,2,"") ->  | N16: =IF(N15=TRUE,3,"") ->  | O16: =IF(O15=TRUE,4,"") ->  | P16: =COUNT(K16:O16) -> 1 | Q16: =SUM(K16:O16) -> 1 | S16: =IF(S15=TRUE,0,"") ->  | T16: =IF(T15=TRUE,1,"") ->  | U16: =IF(U15=TRUE,2,"") ->  | V16: =IF(V15=TRUE,3,"") -> 3 | W16: =IF(W15=TRUE,4,"") ->  | X16: =COUNT(S16:W16) -> 1 | Y16: =SUM(S16:W16) -> 3
A17: 15 | B17: My mom or dad are going to get hurt | J17: =IF(P18>1,"ERROR","") ->  | K17: FALSE | L17: FALSE | M17: TRUE | N17: FALSE | O17: FALSE | P17: Count | Q17: Sum | S17: FALSE | T17: TRUE | U17: FALSE | V17: FALSE | W17: FALSE | X17: Count | Y17: Sum
A18: 16 | B18: Nothing ever works out for me anymore | K18: =IF(K17=TRUE,0,"") ->  | L18: =IF(L17=TRUE,1,"") ->  | M18: =IF(M17=TRUE,2,"") -> 2 | N18: =IF(N17=TRUE,3,"") ->  | O18: =IF(O17=TRUE,4,"") ->  | P18: =COUNT(K18:O18) -> 1 | Q18: =SUM(K18:O18) -> 2 | S18: =IF(S17=TRUE,0,"") ->  | T18: =IF(T17=TRUE,1,"") -> 1 | U18: =IF(U17=TRUE,2,"") ->  | V18: =IF(V17=TRUE,3,"") ->  | W18: =IF(W17=TRUE,4,"") ->  | X18: =COUNT(S18:W18) -> 1 | Y18: =SUM(S18:W18) -> 1
A19: 17 | B19: I’m going to look silly | J19: =IF(P20>1,"ERROR","") ->  | K19: TRUE | L19: FALSE | M19: FALSE | N19: FALSE | O19: FALSE | P19: Count | Q19: Sum | S19: TRUE | T19: FALSE | U19: FALSE | V19: FALSE | W19: FALSE | X19: Count | Y19: Sum
A20: 18 | B20: I won’t let anyone get away with picking on me | J20: =IF(X20>1,"ERROR","") ->  | K20: =IF(K19=TRUE,0,"") -> 0 | L20: =IF(L19=TRUE,1,"") ->  | M20: =IF(M19=TRUE,2,"") ->  | N20: =IF(N19=TRUE,3,"") ->  | O20: =IF(O19=TRUE,4,"") ->  | P20: =COUNT(K20:O20) -> 1 | Q20: =SUM(K20:O20) -> 0 | S20: =IF(S19=TRUE,0,"") -> 0 | T20: =IF(T19=TRUE,1,"") ->  | U20: =IF(U19=TRUE,2,"") ->  | V20: =IF(V19=TRUE,3,"") ->  | W20: =IF(W19=TRUE,4,"") ->  | X20: =COUNT(S20:W20) -> 1 | Y20: =SUM(S20:W20) -> 0
A21: 19 | B21: Other people understand me | J21: =IF(P22>1,"ERROR","") ->  | K21: TRUE | L21: FALSE | M21: FALSE | N21: FALSE | O21: FALSE | P21: Count | Q21: Sum | S21: FALSE | T21: TRUE | U21: FALSE | V21: FALSE | W21: FALSE | X21: Count | Y21: Sum
A22: 20 | B22: I’m scared of losing control | J22: =IF(X22>1,"ERROR","") ->  | K22: =IF(K21=TRUE,0,"") -> 0 | L22: =IF(L21=TRUE,1,"") ->  | M22: =IF(M21=TRUE,2,"") ->  | N22: =IF(N21=TRUE,3,"") ->  | O22: =IF(O21=TRUE,4,"") ->  | P22: =COUNT(K22:O22) -> 1 | Q22: =SUM(K22:O22) -> 0 | S22: =IF(S21=TRUE,0,"") ->  | T22: =IF(T21=TRUE,1,"") -> 1 | U22: =IF(U21=TRUE,2,"") ->  | V22: =IF(V21=TRUE,3,"") ->  | W22: =IF(W21=TRUE,4,"") ->  | X22: =COUNT(S22:W22) -> 1 | Y22: =SUM(S22:W22) -> 1
A23: 21 | B23: Only good things will happen to me | J23: =IF(P24>1,"ERROR","") ->  | K23: FALSE | L23: FALSE | M23: TRUE | N23: FALSE | O23: FALSE | P23: Count | Q23: Sum | S23: FALSE | T23: FALSE | U23: FALSE | V23: TRUE | W23: FALSE | X23: Count | Y23: Sum
A24: 22 | B24: It’s my fault that things have gone wrong | J24: =IF(X24>1,"ERROR","") ->  | K24: =IF(K23=TRUE,0,"") ->  | L24: =IF(L23=TRUE,1,"") ->  | M24: =IF(M23=TRUE,2,"") -> 2 | N24: =IF(N23=TRUE,3,"") ->  | O24: =IF(O23=TRUE,4,"") ->  | P24: =COUNT(K24:O24) -> 1 | Q24: =SUM(K24:O24) -> 2 | S24: =IF(S23=TRUE,0,"") ->  | T24: =IF(T23=TRUE,1,"") ->  | U24: =IF(U23=TRUE,2,"") ->  | V24: =IF(V23=TRUE,3,"") -> 3 | W24: =IF(W23=TRUE,4,"") ->  | X24: =COUNT(S24:W24) -> 1 | Y24: =SUM(S24:W24) -> 3
A25: 23 | B25: People are thinking bad things about me | J25: =IF(P26>1,"ERROR","") ->  | K25: FALSE | L25: TRUE | M25: FALSE | N25: FALSE | O25: FALSE | P25: Count | Q25: Sum | S25: TRUE | T25: FALSE | U25: FALSE | V25: FALSE | W25: FALSE | X25: Count | Y25: Sum
A26: 24 | B26: If someone hurts me, I have the right to hurt them back | K26: =IF(K25=TRUE,0,"") ->  | L26: =IF(L25=TRUE,1,"") -> 1 | M26: =IF(M25=TRUE,2,"") ->  | N26: =IF(N25=TRUE,3,"") ->  | O26: =IF(O25=TRUE,4,"") ->  | P26: =COUNT(K26:O26) -> 1 | Q26: =SUM(K26:O26) -> 1 | S26: =IF(S25=TRUE,0,"") -> 0 | T26: =IF(T25=TRUE,1,"") ->  | U26: =IF(U25=TRUE,2,"") ->  | V26: =IF(V25=TRUE,3,"") ->  | W26: =IF(W25=TRUE,4,"") ->  | X26: =COUNT(S26:W26) -> 1 | Y26: =SUM(S26:W26) -> 0
A27: 25 | B27: I’m going to get hurt | J27: =IF(P28>1,"ERROR","") ->  | K27: FALSE | L27: TRUE | M27: FALSE | N27: FALSE | O27: FALSE | P27: Count | Q27: Sum | S27: FALSE | T27: TRUE | U27: FALSE | V27: FALSE | W27: FALSE | X27: Count | Y27: Sum
A28: 26 | B28: I’m afraid of what other kids will think of me | K28: =IF(K27=TRUE,0,"") ->  | L28: =IF(L27=TRUE,1,"") -> 1 | M28: =IF(M27=TRUE,2,"") ->  | N28: =IF(N27=TRUE,3,"") ->  | O28: =IF(O27=TRUE,4,"") ->  | P28: =COUNT(K28:O28) -> 1 | Q28: =SUM(K28:O28) -> 1 | S28: =IF(S27=TRUE,0,"") ->  | T28: =IF(T27=TRUE,1,"") -> 1 | U28: =IF(U27=TRUE,2,"") ->  | V28: =IF(V27=TRUE,3,"") ->  | W28: =IF(W27=TRUE,4,"") ->  | X28: =COUNT(S28:W28) -> 1 | Y28: =SUM(S28:W28) -> 1
A29: 27 | B29: Some people deserve what they get | J29: =IF(P30>1,"ERROR","") ->  | K29: FALSE | L29: FALSE | M29: TRUE | N29: FALSE | O29: FALSE | P29: Count | Q29: Sum | S29: FALSE | T29: FALSE | U29: TRUE | V29: FALSE | W29: FALSE | X29: Count | Y29: Sum
A30: 28 | B30: I feel good about myself | K30: =IF(K29=TRUE,0,"") ->  | L30: =IF(L29=TRUE,1,"") ->  | M30: =IF(M29=TRUE,2,"") -> 2 | N30: =IF(N29=TRUE,3,"") ->  | O30: =IF(O29=TRUE,4,"") ->  | P30: =COUNT(K30:O30) -> 1 | Q30: =SUM(K30:O30) -> 2 | S30: =IF(S29=TRUE,0,"") ->  | T30: =IF(T29=TRUE,1,"") ->  | U30: =IF(U29=TRUE,2,"") -> 2 | V30: =IF(V29=TRUE,3,"") ->  | W30: =IF(W29=TRUE,4,"") ->  | X30: =COUNT(S30:W30) -> 1 | Y30: =SUM(S30:W30) -> 2
A31: 29 | B31: I’ve made such a mess of my life | J31: =IF(P32>1,"ERROR","") ->  | K31: FALSE | L31: TRUE | M31: FALSE | N31: FALSE | O31: FALSE | P31: Count | Q31: Sum | S31: FALSE | T31: FALSE | U31: FALSE | V31: TRUE | W31: FALSE | X31: Count | Y31: Sum
A32: 30 | B32: Something awful is going to happen | K32: =IF(K31=TRUE,0,"") ->  | L32: =IF(L31=TRUE,1,"") -> 1 | M32: =IF(M31=TRUE,2,"") ->  | N32: =IF(N31=TRUE,3,"") ->  | O32: =IF(O31=TRUE,4,"") ->  | P32: =COUNT(K32:O32) -> 1 | Q32: =SUM(K32:O32) -> 1 | S32: =IF(S31=TRUE,0,"") ->  | T32: =IF(T31=TRUE,1,"") ->  | U32: =IF(U31=TRUE,2,"") ->  | V32: =IF(V31=TRUE,3,"") -> 3 | W32: =IF(W31=TRUE,4,"") ->  | X32: =COUNT(S32:W32) -> 1 | Y32: =SUM(S32:W32) -> 3
A33: 31 | B33: I look like an idiot | J33: =IF(P34>1,"ERROR","") ->  | K33: TRUE | L33: FALSE | M33: FALSE | N33: FALSE | O33: FALSE | P33: Count | Q33: Sum | S33: TRUE | T33: FALSE | U33: FALSE | V33: FALSE | W33: FALSE | X33: Count | Y33: Sum
A34: 32 | B34: My future looks bright | K34: =IF(K33=TRUE,0,"") -> 0 | L34: =IF(L33=TRUE,1,"") ->  | M34: =IF(M33=TRUE,2,"") ->  | N34: =IF(N33=TRUE,3,"") ->  | O34: =IF(O33=TRUE,4,"") ->  | P34: =COUNT(K34:O34) -> 1 | Q34: =SUM(K34:O34) -> 0 | S34: =IF(S33=TRUE,0,"") -> 0 | T34: =IF(T33=TRUE,1,"") ->  | U34: =IF(U33=TRUE,2,"") ->  | V34: =IF(V33=TRUE,3,"") ->  | W34: =IF(W33=TRUE,4,"") ->  | X34: =COUNT(S34:W34) -> 1 | Y34: =SUM(S34:W34) -> 0
A35: 33 | B35: I’ll never be as good as other people are | J35: =IF(P36>1,"ERROR","") ->  | K35: FALSE | L35: FALSE | M35: FALSE | N35: FALSE | O35: FALSE | P35: Count | Q35: Sum | S35: FALSE | T35: TRUE | U35: FALSE | V35: FALSE | W35: FALSE | X35: Count | Y35: Sum
A36: 34 | B36: I always get blamed for things that are not my fault | K36: =IF(K35=TRUE,0,"") ->  | L36: =IF(L35=TRUE,1,"") ->  | M36: =IF(M35=TRUE,2,"") ->  | N36: =IF(N35=TRUE,3,"") ->  | O36: =IF(O35=TRUE,4,"") ->  | P36: =COUNT(K36:O36) -> 0 | Q36: =SUM(K36:O36) -> 0 | S36: =IF(S35=TRUE,0,"") ->  | T36: =IF(T35=TRUE,1,"") -> 1 | U36: =IF(U35=TRUE,2,"") ->  | V36: =IF(V35=TRUE,3,"") ->  | W36: =IF(W35=TRUE,4,"") ->  | X36: =COUNT(S36:W36) -> 1 | Y36: =SUM(S36:W36) -> 1
A37: 35 | B37: I am a failure | J37: =IF(P38>1,"ERROR","") ->  | K37: FALSE | L37: TRUE | M37: FALSE | N37: FALSE | O37: FALSE | P37: Count | Q37: Sum | S37: FALSE | T37: FALSE | U37: FALSE | V37: TRUE | W37: FALSE | X37: Count | Y37: Sum
A38: 36 | B38: Other kids are making fun of me | K38: =IF(K37=TRUE,0,"") ->  | L38: =IF(L37=TRUE,1,"") -> 1 | M38: =IF(M37=TRUE,2,"") ->  | N38: =IF(N37=TRUE,3,"") ->  | O38: =IF(O37=TRUE,4,"") ->  | P38: =COUNT(K38:O38) -> 1 | Q38: =SUM(K38:O38) -> 1 | S38: =IF(S37=TRUE,0,"") ->  | T38: =IF(T37=TRUE,1,"") ->  | U38: =IF(U37=TRUE,2,"") ->  | V38: =IF(V37=TRUE,3,"") -> 3 | W38: =IF(W37=TRUE,4,"") ->  | X38: =COUNT(S38:W38) -> 1 | Y38: =SUM(S38:W38) -> 3
A39: 37 | B39: Everything will turn out well | J39: =IF(P40>1,"ERROR","") ->  | K39: FALSE | L39: FALSE | M39: TRUE | N39: FALSE | O39: FALSE | P39: Count | Q39: Sum | S39: FALSE | T39: TRUE | U39: FALSE | V39: FALSE | W39: FALSE | X39: Count | Y39: Sum
A40: 38 | B40: Life is not worth living | K40: =IF(K39=TRUE,0,"") ->  | L40: =IF(L39=TRUE,1,"") ->  | M40: =IF(M39=TRUE,2,"") -> 2 | N40: =IF(N39=TRUE,3,"") ->  | O40: =IF(O39=TRUE,4,"") ->  | P40: =COUNT(K40:O40) -> 1 | Q40: =SUM(K40:O40) -> 2 | S40: =IF(S39=TRUE,0,"") ->  | T40: =IF(T39=TRUE,1,"") -> 1 | U40: =IF(U39=TRUE,2,"") ->  | V40: =IF(V39=TRUE,3,"") ->  | W40: =IF(W39=TRUE,4,"") ->  | X40: =COUNT(S40:W40) -> 1 | Y40: =SUM(S40:W40) -> 1
A41: 39 | B41: Everyone is staring at me | J41: =IF(P42>1,"ERROR","") ->  | K41: FALSE | L41: FALSE | M41: TRUE | N41: FALSE | O41: FALSE | P41: Count | Q41: Sum | S41: FALSE | T41: FALSE | U41: FALSE | V41: TRUE | W41: FALSE | X41: Count | Y41: Sum
A42: 40 | B42: Kids my age like me | K42: =IF(K41=TRUE,0,"") ->  | L42: =IF(L41=TRUE,1,"") ->  | M42: =IF(M41=TRUE,2,"") -> 2 | N42: =IF(N41=TRUE,3,"") ->  | O42: =IF(O41=TRUE,4,"") ->  | P42: =COUNT(K42:O42) -> 1 | Q42: =SUM(K42:O42) -> 2 | S42: =IF(S41=TRUE,0,"") ->  | T42: =IF(T41=TRUE,1,"") ->  | U42: =IF(U41=TRUE,2,"") ->  | V42: =IF(V41=TRUE,3,"") -> 3 | W42: =IF(W41=TRUE,4,"") ->  | X42: =COUNT(S42:W42) -> 1 | Y42: =SUM(S42:W42) -> 3
A43: 41 | B43: I’m afraid I will make a fool of myself | J43: =IF(P44>1,"ERROR","") ->  | K43: FALSE | L43: FALSE | M43: TRUE | N43: FALSE | O43: FALSE | P43: Count | Q43: Sum | S43: FALSE | T43: FALSE | U43: TRUE | V43: FALSE | W43: FALSE | X43: Count | Y43: Sum
A44: 42 | B44: I’m scared that somebody might die | K44: =IF(K43=TRUE,0,"") ->  | L44: =IF(L43=TRUE,1,"") ->  | M44: =IF(M43=TRUE,2,"") -> 2 | N44: =IF(N43=TRUE,3,"") ->  | O44: =IF(O43=TRUE,4,"") ->  | P44: =COUNT(K44:O44) -> 1 | Q44: =SUM(K44:O44) -> 2 | S44: =IF(S43=TRUE,0,"") ->  | T44: =IF(T43=TRUE,1,"") ->  | U44: =IF(U43=TRUE,2,"") -> 2 | V44: =IF(V43=TRUE,3,"") ->  | W44: =IF(W43=TRUE,4,"") ->  | X44: =COUNT(S44:W44) -> 1 | Y44: =SUM(S44:W44) -> 2
A45: 43 | B45: I will never overcome my problems | J45: =IF(P46>1,"ERROR","") ->  | K45: TRUE | L45: FALSE | M45: FALSE | N45: FALSE | O45: FALSE | P45: Count | Q45: Sum | S45: FALSE | T45: FALSE | U45: TRUE | V45: FALSE | W45: FALSE | X45: Count | Y45: Sum
A46: 44 | B46: People always try to get me into trouble | K46: =IF(K45=TRUE,0,"") -> 0 | L46: =IF(L45=TRUE,1,"") ->  | M46: =IF(M45=TRUE,2,"") ->  | N46: =IF(N45=TRUE,3,"") ->  | O46: =IF(O45=TRUE,4,"") ->  | P46: =COUNT(K46:O46) -> 1 | Q46: =SUM(K46:O46) -> 0 | S46: =IF(S45=TRUE,0,"") ->  | T46: =IF(T45=TRUE,1,"") ->  | U46: =IF(U45=TRUE,2,"") -> 2 | V46: =IF(V45=TRUE,3,"") ->  | W46: =IF(W45=TRUE,4,"") ->  | X46: =COUNT(S46:W46) -> 1 | Y46: =SUM(S46:W46) -> 2
A47: 45 | B47: I feel great | J47: =IF(P48>1,"ERROR","") ->  | K47: FALSE | L47: FALSE | M47: FALSE | N47: TRUE | O47: FALSE | P47: Count | Q47: Sum | S47: FALSE | T47: FALSE | U47: FALSE | V47: FALSE | W47: TRUE | X47: Count | Y47: Sum
A48: 46 | B48: There is something very wrong with me | K48: =IF(K47=TRUE,0,"") ->  | L48: =IF(L47=TRUE,1,"") ->  | M48: =IF(M47=TRUE,2,"") ->  | N48: =IF(N47=TRUE,3,"") -> 3 | O48: =IF(O47=TRUE,4,"") ->  | P48: =COUNT(K48:O48) -> 1 | Q48: =SUM(K48:O48) -> 3 | S48: =IF(S47=TRUE,0,"") ->  | T48: =IF(T47=TRUE,1,"") ->  | U48: =IF(U47=TRUE,2,"") ->  | V48: =IF(V47=TRUE,3,"") ->  | W48: =IF(W47=TRUE,4,"") -> 4 | X48: =COUNT(S48:W48) -> 1 | Y48: =SUM(S48:W48) -> 4
A49: 47 | B49: Some people are bad | J49: =IF(P50>1,"ERROR","") ->  | K49: TRUE | L49: FALSE | M49: FALSE | N49: FALSE | O49: FALSE | P49: Count | Q49: Sum | S49: TRUE | T49: FALSE | U49: FALSE | V49: FALSE | W49: FALSE | X49: Count | Y49: Sum
A50: 48 | B50: I hate myself | K50: =IF(K49=TRUE,0,"") -> 0 | L50: =IF(L49=TRUE,1,"") ->  | M50: =IF(M49=TRUE,2,"") ->  | N50: =IF(N49=TRUE,3,"") ->  | O50: =IF(O49=TRUE,4,"") ->  | P50: =COUNT(K50:O50) -> 1 | Q50: =SUM(K50:O50) -> 0 | S50: =IF(S49=TRUE,0,"") -> 0 | T50: =IF(T49=TRUE,1,"") ->  | U50: =IF(U49=TRUE,2,"") ->  | V50: =IF(V49=TRUE,3,"") ->  | W50: =IF(W49=TRUE,4,"") ->  | X50: =COUNT(S50:W50) -> 1 | Y50: =SUM(S50:W50) -> 0
A51: 49 | B51: Something will happen to someone I care about | J51: =IF(P52>1,"ERROR","") ->  | K51: FALSE | L51: FALSE | M51: TRUE | N51: FALSE | O51: FALSE | P51: Count | Q51: Sum | S51: TRUE | T51: FALSE | U51: FALSE | V51: FALSE | W51: FALSE | X51: Count | Y51: Sum
A52: 50 | B52: Bad people deserve to get punished | K52: =IF(K51=TRUE,0,"") ->  | L52: =IF(L51=TRUE,1,"") ->  | M52: =IF(M51=TRUE,2,"") -> 2 | N52: =IF(N51=TRUE,3,"") ->  | O52: =IF(O51=TRUE,4,"") ->  | P52: =COUNT(K52:O52) -> 1 | Q52: =SUM(K52:O52) -> 2 | S52: =IF(S51=TRUE,0,"") -> 0 | T52: =IF(T51=TRUE,1,"") ->  | U52: =IF(U51=TRUE,2,"") ->  | V52: =IF(V51=TRUE,3,"") ->  | W52: =IF(W51=TRUE,4,"") ->  | X52: =COUNT(S52:W52) -> 1 | Y52: =SUM(S52:W52) -> 0

Sheet CATS-NP Auto Analysis
A1: Children's Automatic Thoughts Scale - Negative & Positive (CATS-N/P) | F1: CATS-N/P Scale Totals
A2: # | B2: Questionnaire Item | C2: Rating | F2: Physical Threat | G2: Social Threat | H2: Failure | I2: Hostility | J2: Positive Thoughts | L2: Name: | M2: ='Student Data Entry'!$AA$1 -> John Doe | O2: Age: | P2: ='Student Data Entry'!$AE$1 -> 12
A3: 1 | B3: I enjoy life | C3: ='Student Data Entry'!$Q$4 -> 1 | D3: =IF(C3>4,"Invalid Rating","") ->  | E3: Raw Scores | F3: =SUM(C8,C11,C14,C17,C22,C27,C32,C44,C48,C51) -> 19 | G3: =SUM(C4,C10,C12,C19,C25,C28,C33,C38,C41,C43) -> 16 | H3: =SUM(C7,C16,C18,C24,C31,C35,C37,C40,C45,C50) -> 11 | I3: =SUM(C6,C9,C15,C20,C26,C29,C36,C46,C49,C52) -> 10 | J3: =SUM(C3,C5,C13,C21,C23,C30,C34,C39,C42,C47) -> 15 | Q3: Physical Threat | R3: Social Threat | S3: Failure | T3: Hostility | U3: Positive Thoughts
A4: 2 | B4: Kids will think I’m stupid | C4: ='Student Data Entry'!$Y$4 -> 2 | D4: =IF(C4>4,"Invalid Rating","") ->  | E4: Sample Means | F4: 6.43 | G4: 8.65 | H4: 7.3 | I4: 11.87 | J4: 21.67 | K4: Ages 8 - 11 | Q4: =$F$3 -> 19 | R4: =$G$3 -> 16 | S4: =$H$3 -> 11 | T4: =$I$3 -> 10 | U4: =$J$3 -> 15 | V4: Raw Scores
A5: 3 | B5: I know that everything I do will work out well | C5: ='Student Data Entry'!$Q$6 -> 2 | E5: Norm SDs | F5: 5.76 | G5: 6.69 | H5: 6.18 | I5: 6.87 | J5: 7.94 | Q5: =IF(Q4=0,"",(Q4-F4)/F5) -> 2.182291667 | R5: =IF(R4=0,"",(R4-G4)/G5) -> 1.098654709 | S5: =IF(S4=0,"",(S4-H4)/H5) -> 0.5987055016 | T5: =IF(T4=0,"",(T4-I4)/I5) -> -0.2721979622 | U5: =IF(U4=0,"",(U4-J4)/J5) -> -0.8400503778 | V5: Ages 8 - 11
A6: 4 | B6: I have the right to take revenge on people if they deserve it | C6: ='Student Data Entry'!$Y$6 -> 1 | E6: Sig.Cut-off | F6: =SUM(F4,F5)+(F5/2) -> 15.07 | G6: =SUM(G4,G5)+(G5/2) -> 18.685 | H6: 16.57 | I6: 22.175 | J6: =(J4-J5)-(J5/2) -> 9.76 | Q6: =100+Q5*(15) -> 132.734375 | R6: =100+R5*(15) -> 116.4798206 | S6: 108.9805825 | T6: 95.91703057 | U6: 87.39924433 | V6: Standard Score
A7: 5 | B7: I can’t do anything right | C7: ='Student Data Entry'!$Q$8 -> 1 | F7: =IF(F3>15.07,"Significant","") -> Significant | G7: =IF(G3>18.69,"Significant","") ->  | H7: =IF(H3>16.57,"Significant","") ->  | I7: =IF(I3>22.18,"Significant","") ->  | J7: =IF(AND(J3>0,J3<9.76),"Significant","") ->  | Q7: =10*Q5+50 -> 71.82291667 | R7: =10*R5+50 -> 60.98654709 | S7: 55.98705502 | T7: 47.27802038 | U7: 41.59949622 | V7: T-Score
A8: 6 | B8: I’m going to have an accident | C8: ='Student Data Entry'!$Y$8 -> 2 | E8: z-scores | F8: =IF(F3=0,"",(F3-6.43)/5.76) -> 2.182291667 | G8: =IF(G3=0,"",(G3-8.65)/6.69) -> 1.098654709 | H8: =IF(H3=0,"",(H3-7.3)/6.18) -> 0.5987055016 | I8: =IF(I3=0,"",(I3-11.87)/6.87) -> -0.2721979622 | J8: =IF(J3=0,"",(J3-21.67)/7.94) -> -0.8400503778 | Q8: =NORMSDIST(F8)*100 -> 98.54559932 | R8: =NORMSDIST(G8)*100 -> 86.40406475 | S8: 72.53153561 | T8: 39.27349043 | U8: 20.04400704 | V8: Percentile Rank
A9: 7 | B9: Other kids are stupid | C9: ='Student Data Entry'!$Q$10 -> 3 | E9: Sample Means | F9: 4.63 | G9: 6.32 | H9: 4.49 | I9: 11.25 | J9: 22.3 | K9: Ages 12 - 18 | Q9: =IF(ISBLANK(Q6),"",IF(AND(Q6>49,Q6<70),"Extremely Below Ave.",IF(AND(Q6>69,Q6<80),"Well-Below Average",IF(AND(Q6>79,Q6<90),"Below Average",IF(AND(Q6>89,Q6<110),"Average",IF(AND(Q6>109,Q6<120),"Above Average",IF(AND(Q6>119,Q6<130),"Well-Above Average",IF(AND(Q6>129,Q6<150),"Extremely Above Ave.","")))))))) -> Extremely Above Ave. | R9: =IF(ISBLANK(R6),"",IF(AND(R6>49,R6<70),"Extremely Below Ave.",IF(AND(R6>69,R6<80),"Well-Below Average",IF(AND(R6>79,R6<90),"Below Average",IF(AND(R6>89,R6<110),"Average",IF(AND(R6>109,R6<120),"Above Average",IF(AND(R6>119,R6<130),"Well-Above Average",IF(AND(R6>129,R6<150),"Extremely Above Ave.","")))))))) -> Above Average | S9: =IF(ISBLANK(S6),"",IF(AND(S6>49,S6<70),"Extremely Below Ave.",IF(AND(S6>69,S6<80),"Well-Below Average",IF(AND(S6>79,S6<90),"Below Average",IF(AND(S6>89,S6<110),"Average",IF(AND(S6>109,S6<120),"Above Average",IF(AND(S6>119,S6<130),"Well-Above Average",IF(AND(S6>129,S6<150),"Extremely Above Ave.","")))))))) -> Average | T9: =IF(ISBLANK(T6),"",IF(AND(T6>49,T6<70),"Extremely Below Ave.",IF(AND(T6>69,T6<80),"Well-Below Average",IF(AND(T6>79,T6<90),"Below Average",IF(AND(T6>89,T6<110),"Average",IF(AND(T6>109,T6<120),"Above Average",IF(AND(T6>119,T6<130),"Well-Above Average",IF(AND(T6>129,T6<150),"Extremely Above Ave.","")))))))) -> Average | U9: =IF(ISBLANK(U6),"",IF(AND(U6>49,U6<70),"Extremely Below Ave.",IF(AND(U6>69,U6<80),"Well-Below Average",IF(AND(U6>79,U6<90),"Below Average",IF(AND(U6>89,U6<110),"Average",IF(AND(U6>109,U6<120),"Above Average",IF(AND(U6>119,U6<130),"Well-Above Average",IF(AND(U6>129,U6<150),"Extremely Above Ave.","")))))))) -> Below Average | V9: Classification
A10: 8 | B10: I’m worried that I’m going to get teased | C10: ='Student Data Entry'!$Y$10 -> 2 | E10: Norm SDs | F10: 5.61 | G10: 6.69 | H10: 5.94 | I10: 7.66 | J10: 8.22 | Q10: =IF(Q4=0,"",(Q4-F9)/F10) -> 2.561497326 | R10: =IF(R4=0,"",(R4-G9)/G10) -> 1.446935725 | S10: =IF(S4=0,"",(S4-H9)/H10) -> 1.095959596 | T10: =IF(T4=0,"",(T4-I9)/I10) -> -0.1631853786 | U10: =IF(U4=0,"",(U4-J9)/J10) -> -0.8880778589 | V10: Ages 12 - 18
A11: 9 | B11: I’m going crazy | C11: ='Student Data Entry'!$Q$12 -> 2 | E11: Sig.Cut-off | F11: =SUM(F9,F10)+(F10/2) -> 13.045 | G11: =SUM(G9,G10)+(G10/2) -> 16.355 | H11: =SUM(H9,H10)+(H10/2) -> 13.4 | I11: =SUM(I9,I10)+(I10/2) -> 22.74 | J11: =(J9-J10)-(J10/2) -> 9.97 | Q11: =100+Q10*(15) -> 138.4224599 | R11: =100+R10*(15) -> 121.7040359 | S11: 116.4393939 | T11: 97.55221932 | U11: 86.67883212 | V11: Standard Score
A12: 10 | B12: Kids are going to laugh at me | C12: ='Student Data Entry'!$Y$12 -> 3 | F12: =IF(F3>13.05,"Significant","") -> Significant | G12: =IF(G3>16.36,"Significant","") ->  | H12: =IF(H3>13.4,"Significant","") ->  | I12: =IF(I3>22.74,"Significant","") ->  | J12: =IF(AND(J3>0,J3<9.97),"Significant","") ->  | Q12: =10*Q10+50 -> 75.61497326 | R12: =10*R10+50 -> 64.46935725 | S12: 60.95959596 | T12: 48.36814621 | U12: 41.11922141 | V12: T-Score
A13: 11 | B13: I don’t give up | C13: ='Student Data Entry'!$Q$14 -> 0 | E13: z-scores | F13: =IF(F3=0,"",(F3-4.63)/5.61) -> 2.561497326 | G13: =IF(G3=0,"",(G3-6.32)/6.69) -> 1.446935725 | H13: =IF(H3=0,"",(H3-4.49)/5.94) -> 1.095959596 | I13: =IF(I3=0,"",(I3-11.25)/7.66) -> -0.1631853786 | J13: =IF(J3=0,"",(J3-22.3)/9.97) -> -0.7321965898 | Q13: =NORMSDIST(F13)*100 -> 99.47888978 | R13: =NORMSDIST(G13)*100 -> 92.60425369 | S13: =NORMSDIST(H13)*100 -> 86.34517717 | T13: =NORMSDIST(I13)*100 -> 43.5186239 | U13: =NORMSDIST(J13)*100 -> 23.20242928 | V13: Percentile Rank
A14: 12 | B14: I’m going to die | C14: ='Student Data Entry'!$Y$14 -> 0 | Q14: =IF(ISBLANK(Q11),"",IF(AND(Q11>49,Q11<70),"Extremely Below Ave.",IF(AND(Q11>69,Q11<80),"Well-Below Average",IF(AND(Q11>79,Q11<90),"Below Average",IF(AND(Q11>89,Q11<110),"Average",IF(AND(Q11>109,Q11<120),"Above Average",IF(AND(Q11>119,Q11<130),"Well-Above Average",IF(AND(Q11>129,Q11<150),"Extremely Above Ave.","")))))))) -> Extremely Above Ave. | R14: =IF(ISBLANK(R11),"",IF(AND(R11>49,R11<70),"Extremely Below Ave.",IF(AND(R11>69,R11<80),"Well-Below Average",IF(AND(R11>79,R11<90),"Below Average",IF(AND(R11>89,R11<110),"Average",IF(AND(R11>109,R11<120),"Above Average",IF(AND(R11>119,R11<130),"Well-Above Average",IF(AND(R11>129,R11<150),"Extremely Above Ave.","")))))))) -> Well-Above Average | S14: =IF(ISBLANK(S11),"",IF(AND(S11>49,S11<70),"Extremely Below Ave.",IF(AND(S11>69,S11<80),"Well-Below Average",IF(AND(S11>79,S11<90),"Below Average",IF(AND(S11>89,S11<110),"Average",IF(AND(S11>109,S11<120),"Above Average",IF(AND(S11>119,S11<130),"Well-Above Average",IF(AND(S11>129,S11<150),"Extremely Above Ave.","")))))))) -> Above Average | T14: =IF(ISBLANK(T11),"",IF(AND(T11>49,T11<70),"Extremely Below Ave.",IF(AND(T11>69,T11<80),"Well-Below Average",IF(AND(T11>79,T11<90),"Below Average",IF(AND(T11>89,T11<110),"Average",IF(AND(T11>109,T11<120),"Above Average",IF(AND(T11>119,T11<130),"Well-Above Average",IF(AND(T11>129,T11<150),"Extremely Above Ave.","")))))))) -> Average | U14: =IF(ISBLANK(U11),"",IF(AND(U11>49,U11<70),"Extremely Below Ave.",IF(AND(U11>69,U11<80),"Well-Below Average",IF(AND(U11>79,U11<90),"Below Average",IF(AND(U11>89,U11<110),"Average",IF(AND(U11>109,U11<120),"Above Average",IF(AND(U11>119,U11<130),"Well-Above Average",IF(AND(U11>129,U11<150),"Extremely Above Ave.","")))))))) -> Below Average | V14: Classification
A15: 13 | B15: Most people are against me | C15: ='Student Data Entry'!$Q$16 -> 1
A16: 14 | B16: I am worthless | C16: ='Student Data Entry'!$Y$16 -> 3
A17: 15 | B17: My mom or dad are going to get hurt | C17: ='Student Data Entry'!$Q$18 -> 2
A18: 16 | B18: Nothing ever works out for me anymore | C18: ='Student Data Entry'!$Y$18 -> 1
A19: 17 | B19: I’m going to look silly | C19: ='Student Data Entry'!$Q$20 -> 0
A20: 18 | B20: I won’t let anyone get away with picking on me | C20: ='Student Data Entry'!$Y$20 -> 0
A21: 19 | B21: Other people understand me | C21: ='Student Data Entry'!$Q$22 -> 0
A22: 20 | B22: I’m scared of losing control | C22: ='Student Data Entry'!$Y$22 -> 1
A23: 21 | B23: Only good things will happen to me | C23: ='Student Data Entry'!$Q$24 -> 2
A24: 22 | B24: It’s my fault that things have gone wrong | C24: ='Student Data Entry'!$Y$24 -> 3
A25: 23 | B25: People are thinking bad things about me | C25: ='Student Data Entry'!$Q$26 -> 1
A26: 24 | B26: If someone hurts me, I have the right to hurt them back | C26: ='Student Data Entry'!$Y$26 -> 0
A27: 25 | B27: I’m going to get hurt | C27: ='Student Data Entry'!$Q$28 -> 1
A28: 26 | B28: I’m afraid of what other kids will think of me | C28: ='Student Data Entry'!$Y$28 -> 1
A29: 27 | B29: Some people deserve what they get | C29: ='Student Data Entry'!$Q$30 -> 2
A30: 28 | B30: I feel good about myself | C30: ='Student Data Entry'!$Y$30 -> 2
A31: 29 | B31: I’ve made such a mess of my life | C31: ='Student Data Entry'!$Q$32 -> 1
A32: 30 | B32: Something awful is going to happen | C32: ='Student Data Entry'!$Y$32 -> 3
A33: 31 | B33: I look like an idiot | C33: ='Student Data Entry'!$Q$34 -> 0
A34: 32 | B34: My future looks bright | C34: ='Student Data Entry'!$Y$34 -> 0
A35: 33 | B35: I’ll never be as good as other people are | C35: ='Student Data Entry'!$Q$36 -> 0
A36: 34 | B36: I always get blamed for things that are not my fault | C36: ='Student Data Entry'!$Y$36 -> 1
A37: 35 | B37: I am a failure | C37: ='Student Data Entry'!$Q$38 -> 1
A38: 36 | B38: Other kids are making fun of me | C38: ='Student Data Entry'!$Y$38 -> 3 | D38: =IF(C38>4,"Invalid Rating","") -> 
A39: 37 | B39: Everything will turn out well | C39: ='Student Data Entry'!$Q$40 -> 2
A40: 38 | B40: Life is not worth living | C40: ='Student Data Entry'!$Y$40 -> 1
A41: 39 | B41: Everyone is staring at me | C41: ='Student Data Entry'!$Q$42 -> 2
A42: 40 | B42: Kids my age like me | C42: ='Student Data Entry'!$Y$42 -> 3
A43: 41 | B43: I’m afraid I will make a fool of myself | C43: ='Student Data Entry'!$Q$44 -> 2
A44: 42 | B44: I’m scared that somebody might die | C44: ='Student Data Entry'!$Y$44 -> 2
A45: 43 | B45: I will never overcome my problems | C45: ='Student Data Entry'!$Q$46 -> 0
A46: 44 | B46: People always try to get me into trouble | C46: ='Student Data Entry'!$Y$46 -> 2
A47: 45 | B47: I feel great | C47: ='Student Data Entry'!$Q$48 -> 3
A48: 46 | B48: There is something very wrong with me | C48: ='Student Data Entry'!$Y$48 -> 4
A49: 47 | B49: Some people are bad | C49: ='Student Data Entry'!$Q$50 -> 0
A50: 48 | B50: I hate myself | C50: ='Student Data Entry'!$Y$50 -> 0
A51: 49 | B51: Something will happen to someone I care about | C51: ='Student Data Entry'!$Q$52 -> 2
A52: 50 | B52: Bad people deserve to get punished | C52: ='Student Data Entry'!$Y$52 -> 0

Sheet CATS Auto Analysis
F1: CATS Normative Analysis
F2: Physical Threat | G2: Social Threat | H2: Failure | I2: Hostility
F3: ='CATS-NP Auto Analysis'!F3 -> 19 | G3: ='CATS-NP Auto Analysis'!G3 -> 16 | H3: ='CATS-NP Auto Analysis'!H3 -> 11 | I3: ='CATS-NP Auto Analysis'!I3 -> 10
F4: 8.17 | G4: 10.19 | H4: 8.63 | I4: 13.58 | J4: Ages 7-11
F5: 8.16 | G5: 9.99 | H5: 9.88 | I5: 9.66
F6: =SUM(F4,F5)+(F5/2) -> 20.41 | G6: =SUM(G4,G5)+(G5/2) -> 25.175 | H6: 23.45 | I6: 28.07
F7: =IF(F3>20.41,"Significant","") ->  | G7: =IF(G3>25.175,"Significant","") ->  | H7: =IF(H3>23.45,"Significant","") ->  | I7: =IF(I3>28.07,"Significant","") -> 
F8: 7.02 | G8: 9.49 | H8: 7.59 | I8: 13.68 | J8: Ages 12-16
F9: 6.87 | G9: 7.1 | H9: 7.99 | I9: 8.04
F10: =SUM(F8,F9)+(F9/2) -> 17.325 | G10: =SUM(G8,G9)+(G9/2) -> 20.14 | H10: =SUM(H8,H9)+(H9/2) -> 19.575 | I10: =SUM(I8,I9)+(I9/2) -> 25.74
F11: =IF(F3>17.325,"Significant","") -> Significant | G11: =IF(G3>20.14,"Significant","") ->  | H11: =IF(H3>19.575,"Significant","") ->  | I11: =IF(I3>22.74,"Significant","") -> 
L15: Physical Threat | M15: Social Threat | N15: Failure | O15: Hostility
L16: =$F$3 -> 19 | M16: =$G$3 -> 16 | N16: =$H$3 -> 11 | O16: =$I$3 -> 10 | P16: Raw Scores
L17: =IF(L16=0,"",(L16-F4)/F5) -> 1.327205882 | M17: =IF(M16=0,"",(M16-G4)/G5) -> 0.5815815816 | N17: =IF(N16=0,"",(N16-H4)/H5) -> 0.2398785425 | O17: =IF(O16=0,"",(O16-I4)/I5) -> -0.3706004141 | P17: Ages 7 - 11
L18: =100+L17*(15) -> 119.9080882 | M18: =100+M17*(15) -> 108.7237237 | N18: 103.5981781 | O18: 94.44099379 | P18: Standard Score
L19: =10*L17+50 -> 63.27205882 | M19: =10*M17+50 -> 55.81581582 | N19: 52.39878543 | O19: 46.29399586 | P19: T-Score
L20: =IF(ISBLANK(L18),"",IF(AND(L18>49,L18<70),"Extremely Below Ave.",IF(AND(L18>69,L18<80),"Well-Below Average",IF(AND(L18>79,L18<90),"Below Average",IF(AND(L18>89,L18<110),"Average",IF(AND(L18>109,L18<120),"Above Average",IF(AND(L18>119,L18<130),"Well-Above Average",IF(AND(L18>129,L18<150),"Extremely Above Ave.","")))))))) -> Above Average | M20: =IF(ISBLANK(M18),"",IF(AND(M18>49,M18<70),"Extremely Below Ave.",IF(AND(M18>69,M18<80),"Well-Below Average",IF(AND(M18>79,M18<90),"Below Average",IF(AND(M18>89,M18<110),"Average",IF(AND(M18>109,M18<120),"Above Average",IF(AND(M18>119,M18<130),"Well-Above Average",IF(AND(M18>129,M18<150),"Extremely Above Ave.","")))))))) -> Average | N20: Average | O20: Average | P20: Classification
L21: =IF(L16=0,"",(L16-F8)/F9) -> 1.743813683 | M21: =IF(M16=0,"",(M16-G8)/G9) -> 0.9169014085 | N21: =IF(N16=0,"",(N16-H8)/H9) -> 0.4267834793 | O21: =IF(O16=0,"",(O16-I8)/I9) -> -0.4577114428 | P21: Ages 12 - 16
L22: =100+L21*(15) -> 126.1572052 | M22: =100+M21*(15) -> 113.7535211 | N22: 106.4017522 | O22: 93.13432836 | P22: Standard Score
L23: =10*L21+50 -> 67.43813683 | M23: =10*M21+50 -> 59.16901408 | N23: 54.26783479 | O23: 45.42288557 | P23: T-Score
L24: =IF(ISBLANK(L22),"",IF(AND(L22>49,L22<70),"Extremely Below Ave.",IF(AND(L22>69,L22<80),"Well-Below Average",IF(AND(L22>79,L22<90),"Below Average",IF(AND(L22>89,L22<110),"Average",IF(AND(L22>109,L22<120),"Above Average",IF(AND(L22>119,L22<130),"Well-Above Average",IF(AND(L22>129,L22<150),"Extremely Above Ave.","")))))))) -> Well-Above Average | M24: =IF(ISBLANK(M22),"",IF(AND(M22>49,M22<70),"Extremely Below Ave.",IF(AND(M22>69,M22<80),"Well-Below Average",IF(AND(M22>79,M22<90),"Below Average",IF(AND(M22>89,M22<110),"Average",IF(AND(M22>109,M22<120),"Above Average",IF(AND(M22>119,M22<130),"Well-Above Average",IF(AND(M22>129,M22<150),"Extremely Above Ave.","")))))))) -> Above Average | N24: Average | O24: Average | P24: Classification
K28: Name: | L28: ='Student Data Entry'!$AA$1 -> John Doe | N28: Age: | O28: ='Student Data Entry'!$AE$1 -> 12
B47: psych

Sheet Item Analysis
A1: Children's Automatic Thoughts Scale - Negative & Positive (CATS-N/P)
A2: # | B2: Questionnaire Items | C2: Ratings
B3: Physical Threat
A4: 6 | B4: I’m going to have an accident | C4: ='Student Data Entry'!$Y$8 -> 2
A5: 9 | B5: I’m going crazy | C5: ='Student Data Entry'!$Q$12 -> 2
A6: 12 | B6: I’m going to die | C6: ='Student Data Entry'!$Y$14 -> 0
A7: 15 | B7: My mom or dad are going to get hurt | C7: ='Student Data Entry'!$Q$18 -> 2
A8: 20 | B8: I’m scared of losing control | C8: ='Student Data Entry'!$Y$22 -> 1
A9: 25 | B9: I’m going to get hurt | C9: ='Student Data Entry'!$Q$28 -> 1
A10: 30 | B10: Something awful is going to happen | C10: ='Student Data Entry'!$Y$32 -> 3
A11: 42 | B11: I’m scared that somebody might die | C11: ='Student Data Entry'!$Y$44 -> 2
A12: 46 | B12: There is something very wrong with me | C12: ='Student Data Entry'!$Y$48 -> 4
A13: 49 | B13: Something will happen to someone I care about | C13: ='Student Data Entry'!$Q$52 -> 2
B14: Social Threat
A15: 2 | B15: Kids will think I’m stupid | C15: ='Student Data Entry'!$Y$4 -> 2
A16: 8 | B16: I’m worried that I’m going to get teased | C16: ='Student Data Entry'!$Y$10 -> 2
A17: 10 | B17: Kids are going to laugh at me | C17: ='Student Data Entry'!$Y$12 -> 3
A18: 17 | B18: I’m going to look silly | C18: ='Student Data Entry'!$Q$20 -> 0
A19: 23 | B19: People are thinking bad things about me | C19: ='Student Data Entry'!$Q$26 -> 1
A20: 26 | B20: I’m afraid of what other kids will think of me | C20: ='Student Data Entry'!$Y$28 -> 1
A21: 31 | B21: I look like an idiot | C21: ='Student Data Entry'!$Q$34 -> 0
A22: 36 | B22: Other kids are making fun of me | C22: ='Student Data Entry'!$Y$38 -> 3
A23: 39 | B23: Everyone is staring at me | C23: ='Student Data Entry'!$Q$42 -> 2
A24: 41 | B24: I’m afraid I will make a fool of myself | C24: ='Student Data Entry'!$Q$44 -> 2
B25: Failure
A26: 5 | B26: I can’t do anything right | C26: ='Student Data Entry'!$Q$8 -> 1
A27: 14 | B27: I am worthless | C27: ='Student Data Entry'!$Y$16 -> 3
A28: 16 | B28: Nothing ever works out for me anymore | C28: ='Student Data Entry'!$Y$18 -> 1
A29: 22 | B29: It’s my fault that things have gone wrong | C29: ='Student Data Entry'!$Y$24 -> 3
A30: 29 | B30: I’ve made such a mess of my life | C30: ='Student Data Entry'!$Q$32 -> 1
A31: 33 | B31: I’ll never be as good as other people are | C31: ='Student Data Entry'!$Q$36 -> 0
A32: 35 | B32: I am a failure | C32: ='Student Data Entry'!$Q$38 -> 1
A33: 38 | B33: Life is not worth living | C33: ='Student Data Entry'!$Y$40 -> 1
A34: 43 | B34: I will never overcome my problems | C34: ='Student Data Entry'!$Q$46 -> 0
A35: 48 | B35: I hate myself | C35: ='Student Data Entry'!$Y$50 -> 0
B36: Hostility
A37: 4 | B37: I have the right to take revenge on people if they deserve it | C37: ='Student Data Entry'!$Y$6 -> 1
A38: 7 | B38: Other kids are stupid | C38: ='Student Data Entry'!$Q$10 -> 3
A39: 13 | B39: Most people are against me | C39: ='Student Data Entry'!$Q$16 -> 1
A40: 18 | B40: I won’t let anyone get away with picking on me | C40: ='Student Data Entry'!$Y$20 -> 0
A41: 24 | B41: If someone hurts me, I have the right to hurt them back | C41: ='Student Data Entry'!$Y$26 -> 0
A42: 27 | B42: Some people deserve what they get | C42: ='Student Data Entry'!$Q$30 -> 2
A43: 34 | B43: I always get blamed for things that are not my fault | C43: ='Student Data Entry'!$Y$36 -> 1
A44: 44 | B44: People always try to get me into trouble | C44: ='Student Data Entry'!$Y$46 -> 2
A45: 47 | B45: Some people are bad | C45: ='Student Data Entry'!$Q$50 -> 0
A46: 50 | B46: Bad people deserve to get punished | C46: ='Student Data Entry'!$Y$52 -> 0
B47: Positive Thoughts
A48: 1 | B48: I enjoy life | C48: ='Student Data Entry'!$Q$4 -> 1
A49: 3 | B49: I know that everything I do will work out well | C49: ='Student Data Entry'!$Q$6 -> 2
A50: 11 | B50: I don’t give up | C50: ='Student Data Entry'!$Q$14 -> 0
A51: 19 | B51: Other people understand me | C51: ='Student Data Entry'!$Q$22 -> 0
A52: 21 | B52: Only good things will happen to me | C52: ='Student Data Entry'!$Q$24 -> 2
A53: 28 | B53: I feel good about myself | C53: ='Student Data Entry'!$Y$30 -> 2
A54: 32 | B54: My future looks bright | C54: ='Student Data Entry'!$Y$34 -> 0
A55: 37 | B55: Everything will turn out well | C55: ='Student Data Entry'!$Q$40 -> 2
A56: 40 | B56: Kids my age like me | C56: ='Student Data Entry'!$Y$42 -> 3
A57: 45 | B57: I feel great | C57: ='Student Data Entry'!$Q$48 -> 3

Sheet Child Feedback

Sheet Adolescent Feedback

Sheet Clinician Entry & Analysis
A1: Children's Automatic Thoughts Scale - Negative & Positive (CATS-N/P) | F1: CATS-N/P Scale Totals
A2: # | B2: Questionnaire Item | C2: Rating | F2: Physical Threat | G2: Social Threat | H2: Failure | I2: Hostility | J2: Positive Thoughts | L2: Name: | O2: Age: | P2: 11
A3: 1 | B3: I enjoy life | D3: =IF(C3>4,"Invalid Rating","") ->  | E3: Raw Scores | F3: =SUM(C8,C11,C14,C17,C22,C27,C32,C44,C48,C51) -> 0 | G3: =SUM(C4,C10,C12,C19,C25,C28,C33,C38,C41,C43) -> 0 | H3: =SUM(C7,C16,C18,C24,C31,C35,C37,C40,C45,C50) -> 0 | I3: =SUM(C6,C9,C15,C20,C26,C29,C36,C46,C49,C52) -> 0 | J3: =SUM(C3,C5,C13,C21,C23,C30,C34,C39,C42,C47) -> 0
A4: 2 | B4: Kids will think I’m stupid | D4: =IF(C4>4,"Invalid Rating","") ->  | E4: Norm Averages | F4: 6.43 | G4: 8.65 | H4: 7.3 | I4: 11.87 | J4: 21.67 | K4: Ages 8 - 11
A5: 3 | B5: I know that everything I do will work out well | E5: Norm SDs | F5: 5.76 | G5: 6.69 | H5: 6.18 | I5: 6.87 | J5: 7.94 | Q5: Physical Threat | R5: Social Threat | S5: Failure | T5: Hostility | U5: Positive Thoughts
A6: 4 | B6: I have the right to take revenge on people if they deserve it | E6: Sig.Cut-off | F6: =SUM(F4,F5)+(F5/2) -> 15.07 | G6: =SUM(G4,G5)+(G5/2) -> 18.685 | H6: 16.57 | I6: 22.175 | J6: =(J4-J5)-(J5/2) -> 9.76 | Q6: =$F$3 -> 0 | R6: =$G$3 -> 0 | S6: =$H$3 -> 0 | T6: =$I$3 -> 0 | U6: =$J$3 -> 0 | V6: Raw Scores
A7: 5 | B7: I can’t do anything right | F7: =IF(F3>15.07,"Significant","") ->  | G7: =IF(G3>18.69,"Significant","") ->  | H7: =IF(H3>16.57,"Significant","") ->  | I7: =IF(I3>22.18,"Significant","") ->  | J7: =IF(AND(J3>0,J3<9.76),"Significant","") ->  | Q7: =IF(Q6=0,"",(Q6-F4)/F5) ->  | R7: =IF(R6=0,"",(R6-G4)/G5) ->  | V7: Ages 8 - 11
A8: 6 | B8: I’m going to have an accident | E8: Norm Averages | F8: 4.63 | G8: 6.32 | H8: 4.49 | I8: 11.25 | J8: 22.3 | K8: Ages 12 - 18 | Q8: =100+Q7*(15) ->  | R8: =100+R7*(15) ->  | V8: Standard Score
A9: 7 | B9: Other kids are stupid | E9: Norm SDs | F9: 5.61 | G9: 6.69 | H9: 5.94 | I9: 7.66 | J9: 8.22 | Q9: =10*Q7+50 ->  | R9: =10*R7+50 ->  | V9: T-Score
A10: 8 | B10: I’m worried that I’m going to get teased | E10: Sig.Cut-off | F10: =SUM(F8,F9)+(F9/2) -> 13.045 | G10: =SUM(G8,G9)+(G9/2) -> 16.355 | H10: =SUM(H8,H9)+(H9/2) -> 13.4 | I10: =SUM(I8,I9)+(I9/2) -> 22.74 | J10: =(J8-J9)-(J9/2) -> 9.97 | Q10: =IF(ISBLANK(Q8),"",IF(AND(Q8>49,Q8<70),"Extremely Below Ave.",IF(AND(Q8>69,Q8<80),"Well-Below Average",IF(AND(Q8>79,Q8<90),"Below Average",IF(AND(Q8>89,Q8<110),"Average",IF(AND(Q8>109,Q8<120),"Above Average",IF(AND(Q8>119,Q8<130),"Well-Above Average",IF(AND(Q8>129,Q8<140),"Extremely Above Ave.","")))))))) ->  | R10: =IF(ISBLANK(R8),"",IF(AND(R8>49,R8<70),"Extremely Below Ave.",IF(AND(R8>69,R8<80),"Well-Below Average",IF(AND(R8>79,R8<90),"Below Average",IF(AND(R8>89,R8<110),"Average",IF(AND(R8>109,R8<120),"Above Average",IF(AND(R8>119,R8<130),"Well-Above Average",IF(AND(R8>129,R8<140),"Extremely Above Ave.","")))))))) ->  | V10: Classification
A11: 9 | B11: I’m going crazy | F11: =IF(F3>13.05,"Significant","") ->  | G11: =IF(G3>16.36,"Significant","") ->  | H11: =IF(H3>13.4,"Significant","") ->  | I11: =IF(I3>22.74,"Significant","") ->  | J11: =IF(AND(J3>0,J3<9.97),"Significant","") ->  | Q11: =IF(Q6=0,"",(Q6-F8)/F9) ->  | R11: =IF(R6=0,"",(R6-G8)/G9) ->  | V11: Ages 12 - 18
A12: 10 | B12: Kids are going to laugh at me | Q12: =100+Q11*(15) ->  | R12: =100+R11*(15) ->  | V12: Standard Score
A13: 11 | B13: I don’t give up | Q13: =10*Q11+50 ->  | R13: =10*R11+50 ->  | V13: T-Score
A14: 12 | B14: I’m going to die | Q14: =IF(ISBLANK(Q12),"",IF(AND(Q12>49,Q12<70),"Extremely Below Ave.",IF(AND(Q12>69,Q12<80),"Well-Below Average",IF(AND(Q12>79,Q12<90),"Below Average",IF(AND(Q12>89,Q12<110),"Average",IF(AND(Q12>109,Q12<120),"Above Average",IF(AND(Q12>119,Q12<130),"Well-Above Average",IF(AND(Q12>129,Q12<140),"Extremely Above Ave.","")))))))) ->  | R14: =IF(ISBLANK(R12),"",IF(AND(R12>49,R12<70),"Extremely Below Ave.",IF(AND(R12>69,R12<80),"Well-Below Average",IF(AND(R12>79,R12<90),"Below Average",IF(AND(R12>89,R12<110),"Average",IF(AND(R12>109,R12<120),"Above Average",IF(AND(R12>119,R12<130),"Well-Above Average",IF(AND(R12>129,R12<140),"Extremely Above Ave.","")))))))) ->  | V14: Classification
A15: 13 | B15: Most people are against me
A16: 14 | B16: I am worthless
A17: 15 | B17: My mom or dad are going to get hurt
A18: 16 | B18: Nothing ever works out for me anymore
A19: 17 | B19: I’m going to look silly
A20: 18 | B20: I won’t let anyone get away with picking on me
A21: 19 | B21: Other people understand me
A22: 20 | B22: I’m scared of losing control
A23: 21 | B23: Only good things will happen to me
A24: 22 | B24: It’s my fault that things have gone wrong
A25: 23 | B25: People are thinking bad things about me
A26: 24 | B26: If someone hurts me, I have the right to hurt them back
A27: 25 | B27: I’m going to get hurt
A28: 26 | B28: I’m afraid of what other kids will think of me
A29: 27 | B29: Some people deserve what they get
A30: 28 | B30: I feel good about myself
A31: 29 | B31: I’ve made such a mess of my life
A32: 30 | B32: Something awful is going to happen
A33: 31 | B33: I look like an idiot
A34: 32 | B34: My future looks bright
A35: 33 | B35: I’ll never be as good as other people are
A36: 34 | B36: I always get blamed for things that are not my fault
A37: 35 | B37: I am a failure
A38: 36 | B38: Other kids are making fun of me
A39: 37 | B39: Everything will turn out well
A40: 38 | B40: Life is not worth living
A41: 39 | B41: Everyone is staring at me
A42: 40 | B42: Kids my age like me
A43: 41 | B43: I’m afraid I will make a fool of myself
A44: 42 | B44: I’m scared that somebody might die
A45: 43 | B45: I will never overcome my problems
A46: 44 | B46: People always try to get me into trouble
A47: 45 | B47: I feel great
A48: 46 | B48: There is something very wrong with me
A49: 47 | B49: Some people are bad
A50: 48 | B50: I hate myself
A51: 49 | B51: Something will happen to someone I care about
A52: 50 | B52: Bad people deserve to get punished

Sheet Group Data
C1: CATS-N/P Norms used | H1: Negative Thoughts | I1: CATS norms used | M1: Negative Thoughts
A2: Student Names | C2: Physical Threat | D2: Social Threat | E2: Failure | F2: Hostility | G2: Positive Thoughts | H2: Average | I2: Physical Threat | J2: Social Threat | K2: Failure | L2: Hostility | M2: Average
A3: Marsha Penner | C3: 124.921875 | D3: 107.5112108 | E3: 118.6893204 | F3: 115.5676856 | G3: 87.39924433 | H3: =AVERAGE(C3:F3) -> 116.6725229 | I3: 114.3933824 | J3: 102.7177177 | K3: 109.6710526 | L3: 108.4161491 | M3: =AVERAGE(I3:L3) -> 108.7995754
A4: Jeff Reimer | C4: 145.7552083 | D4: 134.4170404 | E4: 128.3980583 | F4: 126.4847162 | G4: 93.06675063 | H4: =AVERAGE(C4:F4) -> 133.7637558 | I4: 129.0992647 | J4: 120.7357357 | K4: 115.7439271 | L4: 116.1801242 | M4: =AVERAGE(I4:L4) -> 120.4397629
A5: Steve Anderson | C5: 114.5052083 | D5: 98.5426009 | E5: 111.407767 | F5: 104.650655 | G5: 89.2884131 | H5: 107.2765578 | I5: 107.0404412 | J5: 96.71171171 | K5: 105.1163968 | L5: 100.6521739 | M5: 102.3801809
A6: Donald Trump | C6: 85.859375 | D6: 98.5426009 | E6: 84.70873786 | F6: 133.0349345 | G6: 119.5151134 | H6: 100.5364121 | I6: 86.81985294 | J6: 96.71171171 | K6: 88.4159919 | L6: 120.8385093 | M6: 98.19651647
H30: =AVERAGE(C30:F30) ->  | M30: =AVERAGE(I30:L30) -> 
H31: =AVERAGE(C31:F31) ->  | M31: =AVERAGE(I31:L31) -> 
A34: AVERAGES: | C34: =AVERAGE(C3:C33) -> 117.7604167 | D34: =AVERAGE(D3:D33) -> 109.7533632 | E34: 110.8009709 | F34: 119.9344978 | G34: 97.31738035 | H34: =+AVERAGE(C34:F34) -> 114.5623121 | I34: =+AVERAGE(I3:I33) -> 109.3382353 | J34: =+AVERAGE(J3:J33) -> 104.2192192 | K34: 104.7368421 | L34: 111.5217391 | M34: =AVERAGE(I34:L34) -> 107.4540089

Sheet SS to Percentile

Sheet Data for Local Norms
C1: CATS-N/P Raw Scores | H1: Negative Thoughts
A2: Student Names | C2: Physical Threat | D2: Social Threat | E2: Failure | F2: Hostility | G2: Positive Thoughts | H2: Average
A3: Marsha Penner | C3: 12 | D3: 16 | E3: 4 | F3: 16 | G3: 12 | H3: =AVERAGE(C3:F3) -> 12
A4: Jeff Reimer | C4: 15 | D4: 18 | E4: 16 | F4: 10 | G4: 4 | H4: =AVERAGE(C4:G4) -> 12.6
A5: Steve Wasnia | C5: 3 | D5: 8 | E5: 2 | F5: 2 | G5: 30 | H5: =AVERAGE(C5:F5) -> 3.75
A6: Donald Trump | C6: 7 | D6: 13 | E6: 1 | F6: 28 | G6: 19 | H6: 12.25
A51: AVERAGES: | C51: =AVERAGE(C3:C50) -> 9.25 | D51: =AVERAGE(D3:D50) -> 13.75 | E51: =AVERAGE(E3:E50) -> 5.75 | F51: =AVERAGE(F3:F50) -> 14 | G51: =AVERAGE(G3:G50) -> 16.25 | H51: =+AVERAGE(C51:F51) -> 10.6875
A52: Standard Deviations: | C52: =STDEV(C3:C50) -> 5.315072906 | D52: =STDEV(D3:D50) -> 4.34932945 | E52: =STDEV(E3:E50) -> 6.946221995 | F52: =STDEV(F3:F50) -> 10.95445115 | G52: =STDEV(G3:G50) -> 11.02648327 | H52: =AVERAGE(C52:F52) -> 6.891268875
